[Event "Titled Tuesday Blitz May 30 Early 2023"]
[White "Kuzubov, Yuriy"]
[Black "Duda, Jan-Krzysztof"]
[WhiteFideId "14112906"]
[BlackFideId "1170546"]
[WhiteElo "2496"]
[BlackElo "2790"]
[Result "1-0"]
[Round "09"]
[TimeControl "180+2"]
[Date "2023.05.30"]
[WhiteClock "0:00:09"]
[BlackClock "0:00:03"]

1. d4 {[%clk 0:03:00]}  Nf6 {[%clk 0:02:59]} 2. c4 {[%clk 0:03:01]}  e6 {[%clk 0:02:59]} 3. Nc3 {[%clk 0:03:02]}  Bb4 {[%clk 0:02:59]} 4. Qc2 {[%clk 0:03:02]}  c5 {[%clk 0:02:54]} 5. dxc5 {[%clk 0:03:01]}  Na6 {[%clk 0:02:54]} 6. a3 {[%clk 0:03:00]}  Bxc3+ {[%clk 0:02:54]} 7. Qxc3 {[%clk 0:03:01]}  Nxc5 {[%clk 0:02:55]} 8. f3 {[%clk 0:03:00]}  a5 {[%clk 0:02:53]} 9. Bf4 {[%clk 0:02:43]}  a4 {[%clk 0:02:37]} 10. Rd1 {[%clk 0:02:37]}  b6 {[%clk 0:02:28]} 11. e4 {[%clk 0:02:28]}  O-O {[%clk 0:02:27]} 12. Nh3 {[%clk 0:02:21]}  d5 {[%clk 0:02:24]} 13. e5 {[%clk 0:02:02]}  Nh5 {[%clk 0:02:14]} 14. Be3 {[%clk 0:01:59]}  f5 {[%clk 0:01:50]} 15. cxd5 {[%clk 0:01:53]}  exd5 {[%clk 0:01:46]} 16. Rxd5 {[%clk 0:01:53]}  Qe8 {[%clk 0:01:25]} 17. Bxc5 {[%clk 0:01:46]}  bxc5 {[%clk 0:01:26]} 18. Bc4 {[%clk 0:01:46]}  Kh8 {[%clk 0:01:04]} 19. O-O {[%clk 0:01:43]}  f4 {[%clk 0:01:04]} 20. Nf2 {[%clk 0:01:37]}  Bf5 {[%clk 0:01:01]} 21. Re1 {[%clk 0:01:34]}  Rc8 {[%clk 0:00:39]} 22. e6 {[%clk 0:01:25]}  Qe7 {[%clk 0:00:39]} 23. Qe5 {[%clk 0:01:14]}  Bg6 {[%clk 0:00:22]} 24. Rd7 {[%clk 0:01:12]}  Qh4 {[%clk 0:00:22]} 25. e7 {[%clk 0:00:57]}  Rfe8 {[%clk 0:00:22]} 26. Ba6 {[%clk 0:00:55]}  Rb8 {[%clk 0:00:18]} 27. Qxc5 {[%clk 0:00:40]}  Nf6 {[%clk 0:00:18]} 28. Rd2 {[%clk 0:00:38]}  h6 {[%clk 0:00:17]} 29. Bb5 {[%clk 0:00:38]}  Rec8 {[%clk 0:00:17]} 30. Qe5 {[%clk 0:00:36]}  Kh7 {[%clk 0:00:16]} 31. Rde2 {[%clk 0:00:28]}  Rb6 {[%clk 0:00:08]} 32. Nh3 {[%clk 0:00:27]}  Be8 {[%clk 0:00:04]} 33. Bxe8 {[%clk 0:00:26]}  Rxe8 {[%clk 0:00:05]} 34. Qf5+ {[%clk 0:00:24]}  Kg8 {[%clk 0:00:05]} 35. Nxf4 {[%clk 0:00:23]}  Qg5 {[%clk 0:00:04]} 36. Qxg5 {[%clk 0:00:22]}  hxg5 {[%clk 0:00:05]} 37. Nd3 {[%clk 0:00:22]}  g4 {[%clk 0:00:05]} 38. fxg4 {[%clk 0:00:21]}  Nxg4 {[%clk 0:00:05]} 39. Nc5 {[%clk 0:00:21]}  Nf6 {[%clk 0:00:04]} 40. Nxa4 {[%clk 0:00:21]}  Rc6 {[%clk 0:00:05]} 41. Nc3 {[%clk 0:00:21]}  Kf7 {[%clk 0:00:05]} 42. a4 {[%clk 0:00:21]}  Rc5 {[%clk 0:00:05]} 43. h3 {[%clk 0:00:21]}  Ng8 {[%clk 0:00:05]} 44. Ne4 {[%clk 0:00:20]}  Rc6 {[%clk 0:00:05]} 45. Ng5+ {[%clk 0:00:20]}  Kg6 {[%clk 0:00:05]} 46. h4 {[%clk 0:00:20]}  Kh5 {[%clk 0:00:03]} 47. g3 {[%clk 0:00:18]}  Rc4 {[%clk 0:00:03]} 48. Kg2 {[%clk 0:00:18]}  Rxa4 {[%clk 0:00:03]} 49. Kh3 {[%clk 0:00:18]}  Nf6 {[%clk 0:00:03]} 50. Ne6 {[%clk 0:00:17]}  Kg6 {[%clk 0:00:04]} 51. Nf4+ {[%clk 0:00:16]}  Kf7 {[%clk 0:00:04]} 52. Re3 {[%clk 0:00:16]}  Rb4 {[%clk 0:00:04]} 53. b3 {[%clk 0:00:16]}  Rb7 {[%clk 0:00:05]} 54. Nd3 {[%clk 0:00:15]}  Rb5 {[%clk 0:00:04]} 55. Ne5+ {[%clk 0:00:14]}  Kg8 {[%clk 0:00:04]} 56. Ng4 {[%clk 0:00:13]}  Nd7 {[%clk 0:00:03]} 57. Rd3 {[%clk 0:00:12]}  Rb7 {[%clk 0:00:03]} 58. Rd6 {[%clk 0:00:10]}  Nc5 {[%clk 0:00:02]} 59. Rd8 {[%clk 0:00:08]}  Kf7 {[%clk 0:00:03]} 60. Ne5+ {[%clk 0:00:08]}  Kxe7 {[%clk 0:00:03]} 61. Nc6+ {[%clk 0:00:09]}  Kf6 {[%clk 0:00:04]} 62. Rdxe8 {[%clk 0:00:09]}  Rxb3 {[%clk 0:00:04]} 63. Rf8+ {[%clk 0:00:09]}  Kg6 {[%clk 0:00:05]} 64. Ne7+ {[%clk 0:00:09]}  Kh7 {[%clk 0:00:05]} 65. Nd5 {[%clk 0:00:09]}  Nd3 {[%clk 0:00:05]} 66. Re3 {[%clk 0:00:08]}  Ra3 {[%clk 0:00:04]} 67. Rff3 {[%clk 0:00:09]}  Ra5 {[%clk 0:00:04]} 68. Rxd3 {[%clk 0:00:09]}  Kh6 {[%clk 0:00:05]} 69. Ne3 {[%clk 0:00:09]}  g5 {[%clk 0:00:05]} 70. Ng4+ {[%clk 0:00:08]}  Kg7 {[%clk 0:00:04]} 71. h5 {[%clk 0:00:08]}  Ra7 {[%clk 0:00:04]} 72. Rd6 {[%clk 0:00:08]}  Kh7 {[%clk 0:00:04]} 73. Rh6+ {[%clk 0:00:08]}  Kg7 {[%clk 0:00:04]} 74. Rg6+ {[%clk 0:00:09]}  Kh8 {[%clk 0:00:03]} 75. Rf8+ {[%clk 0:00:09]} 1-0


[Site "https://www.chess.com"]

[Event "Titled Tuesday Blitz May 30 Early 2023"]
[White "Kovalenko, Igor"]
[Black "Bluebaum, Matthias"]
[WhiteFideId "14117908"]
[BlackFideId "24651516"]
[WhiteElo "2574"]
[BlackElo "2639"]
[Result "0-1"]
[Round "09"]
[TimeControl "180+2"]
[Date "2023.05.30"]
[WhiteClock "0:00:16"]
[BlackClock "0:01:13"]

1. c4 {[%clk 0:02:58]}  e6 {[%clk 0:03:00]} 2. Nc3 {[%clk 0:02:58]}  d5 {[%clk 0:03:01]} 3. d4 {[%clk 0:02:57]}  Bb4 {[%clk 0:03:01]} 4. e3 {[%clk 0:02:53]}  Nf6 {[%clk 0:03:01]} 5. a3 {[%clk 0:02:52]}  Bxc3+ {[%clk 0:03:01]} 6. bxc3 {[%clk 0:02:53]}  c6 {[%clk 0:03:02]} 7. a4 {[%clk 0:02:51]}  O-O {[%clk 0:03:02]} 8. Nf3 {[%clk 0:02:49]}  Qc7 {[%clk 0:03:00]} 9. Ba3 {[%clk 0:02:48]}  Re8 {[%clk 0:03:00]} 10. Be2 {[%clk 0:02:48]}  dxc4 {[%clk 0:02:57]} 11. Bxc4 {[%clk 0:02:47]}  c5 {[%clk 0:02:57]} 12. Bb5 {[%clk 0:02:34]}  Bd7 {[%clk 0:02:57]} 13. dxc5 {[%clk 0:01:48]}  a6 {[%clk 0:02:43]} 14. Be2 {[%clk 0:01:39]}  Bc6 {[%clk 0:02:34]} 15. O-O {[%clk 0:01:28]}  Nbd7 {[%clk 0:02:35]} 16. Qd6 {[%clk 0:01:23]}  Qc8 {[%clk 0:02:30]} 17. a5 {[%clk 0:01:16]}  Ne4 {[%clk 0:02:30]} 18. Qd4 {[%clk 0:01:16]}  e5 {[%clk 0:02:29]} 19. Qc4 {[%clk 0:01:15]}  Ndf6 {[%clk 0:02:26]} 20. Qb3 {[%clk 0:01:11]}  Bd5 {[%clk 0:02:15]} 21. Qb4 {[%clk 0:01:04]}  Qf5 {[%clk 0:01:57]} 22. Rad1 {[%clk 0:01:01]}  Rac8 {[%clk 0:01:54]} 23. c4 {[%clk 0:00:58]}  Bc6 {[%clk 0:01:53]} 24. Qb2 {[%clk 0:00:52]}  Ng5 {[%clk 0:01:53]} 25. Ne1 {[%clk 0:00:39]}  Nh3+ {[%clk 0:01:45]} 26. Kh1 {[%clk 0:00:34]}  Nxf2+ {[%clk 0:01:42]} 27. Kg1 {[%clk 0:00:34]}  Nxd1 {[%clk 0:01:43]} 28. Bxd1 {[%clk 0:00:35]}  Qg6 {[%clk 0:01:41]} 29. Nf3 {[%clk 0:00:29]}  Rcd8 {[%clk 0:01:38]} 30. Bc2 {[%clk 0:00:23]}  Be4 {[%clk 0:01:38]} 31. Ba4 {[%clk 0:00:22]}  Re6 {[%clk 0:01:34]} 32. Qc3 {[%clk 0:00:21]}  Rd3 {[%clk 0:01:30]} 33. Qb2 {[%clk 0:00:21]}  Rxe3 {[%clk 0:01:26]} 34. c6 {[%clk 0:00:21]}  bxc6 {[%clk 0:01:15]} 35. Bc5 {[%clk 0:00:21]}  Rxf3 {[%clk 0:01:13]} 36. Rxf3 {[%clk 0:00:16]}  Bxf3 {[%clk 0:01:13]} 0-1


[Site "https://www.chess.com"]

[Event "Titled Tuesday Blitz May 30 Early 2023"]
[White "Narayanan.S.L"]
[Black "Zemlyanskii, Ivan"]
[WhiteFideId "5058422"]
[BlackFideId "24249971"]
[WhiteElo "2563"]
[BlackElo "2421"]
[Result "0-1"]
[Round "09"]
[TimeControl "180+2"]
[Date "2023.05.30"]
[WhiteClock "0:00:00"]
[BlackClock "0:00:10"]

1. e4 {[%clk 0:03:00]}  c5 {[%clk 0:02:49]} 2. c3 {[%clk 0:03:00]}  d5 {[%clk 0:02:46]} 3. exd5 {[%clk 0:03:00]}  Qxd5 {[%clk 0:02:47]} 4. Nf3 {[%clk 0:03:00]}  Nf6 {[%clk 0:02:47]} 5. Na3 {[%clk 0:03:00]}  e6 {[%clk 0:02:44]} 6. d4 {[%clk 0:02:52]}  Qd8 {[%clk 0:02:44]} 7. Nc4 {[%clk 0:02:48]}  Nc6 {[%clk 0:02:28]} 8. Be3 {[%clk 0:02:48]}  Nd5 {[%clk 0:02:25]} 9. Bd3 {[%clk 0:02:46]}  cxd4 {[%clk 0:02:18]} 10. Nxd4 {[%clk 0:02:45]}  Nxe3 {[%clk 0:02:13]} 11. fxe3 {[%clk 0:02:44]}  Be7 {[%clk 0:02:08]} 12. O-O {[%clk 0:02:43]}  O-O {[%clk 0:02:03]} 13. Kh1 {[%clk 0:02:36]}  Bd7 {[%clk 0:01:59]} 14. Nxc6 {[%clk 0:02:15]}  Bxc6 {[%clk 0:02:00]} 15. Ne5 {[%clk 0:02:15]}  Qd5 {[%clk 0:01:52]} 16. Nxc6 {[%clk 0:02:11]}  Qxc6 {[%clk 0:01:53]} 17. Qe2 {[%clk 0:02:06]}  Bd6 {[%clk 0:01:46]} 18. Rf3 {[%clk 0:02:04]}  g6 {[%clk 0:01:42]} 19. Raf1 {[%clk 0:02:04]}  Rad8 {[%clk 0:01:40]} 20. Bc2 {[%clk 0:02:00]}  Be5 {[%clk 0:01:38]} 21. Qf2 {[%clk 0:01:57]}  Rd7 {[%clk 0:01:32]} 22. Qh4 {[%clk 0:01:54]}  Bg7 {[%clk 0:01:21]} 23. Bb3 {[%clk 0:01:48]}  Qd6 {[%clk 0:01:18]} 24. h3 {[%clk 0:01:44]}  Qe7 {[%clk 0:01:09]} 25. Qe4 {[%clk 0:01:41]}  b6 {[%clk 0:01:07]} 26. a4 {[%clk 0:01:16]}  Kh8 {[%clk 0:00:54]} 27. Qf4 {[%clk 0:01:10]}  Kg8 {[%clk 0:00:51]} 28. R3f2 {[%clk 0:01:08]}  Qd6 {[%clk 0:00:49]} 29. Qg4 {[%clk 0:01:06]}  Qe7 {[%clk 0:00:41]} 30. Rf4 {[%clk 0:01:01]}  Rc7 {[%clk 0:00:33]} 31. Qf3 {[%clk 0:00:59]}  Qe8 {[%clk 0:00:32]} 32. h4 {[%clk 0:00:56]}  h5 {[%clk 0:00:30]} 33. g4 {[%clk 0:00:52]}  Qa8 {[%clk 0:00:21]} 34. Qxa8 {[%clk 0:00:48]}  Rxa8 {[%clk 0:00:22]} 35. gxh5 {[%clk 0:00:48]}  gxh5 {[%clk 0:00:22]} 36. Rg1 {[%clk 0:00:44]}  Kh7 {[%clk 0:00:21]} 37. Rg5 {[%clk 0:00:41]}  Bh6 {[%clk 0:00:21]} 38. Bc2+ {[%clk 0:00:31]}  f5 {[%clk 0:00:21]} 39. Rxh5 {[%clk 0:00:27]}  Kg6 {[%clk 0:00:21]} 40. Rxh6+ {[%clk 0:00:22]}  Kxh6 {[%clk 0:00:22]} 41. e4 {[%clk 0:00:22]}  Rf8 {[%clk 0:00:18]} 42. exf5 {[%clk 0:00:21]}  Rcf7 {[%clk 0:00:16]} 43. Kg2 {[%clk 0:00:21]}  exf5 {[%clk 0:00:16]} 44. Kh3 {[%clk 0:00:21]}  Kg6 {[%clk 0:00:16]} 45. Rf3 {[%clk 0:00:20]}  Re8 {[%clk 0:00:15]} 46. Bd3 {[%clk 0:00:15]}  Re5 {[%clk 0:00:14]} 47. Kg3 {[%clk 0:00:16]}  Kf6 {[%clk 0:00:15]} 48. Kh3 {[%clk 0:00:13]}  Rg7 {[%clk 0:00:15]} 49. b4 {[%clk 0:00:13]}  Rg1 {[%clk 0:00:11]} 50. Kh2 {[%clk 0:00:12]}  Rc1 {[%clk 0:00:12]} 51. Bb5 {[%clk 0:00:11]}  Re4 {[%clk 0:00:11]} 52. Kg3 {[%clk 0:00:09]}  Rg4+ {[%clk 0:00:11]} 53. Kf2 {[%clk 0:00:09]}  Rxh4 {[%clk 0:00:12]} 54. Ke2 {[%clk 0:00:08]}  Rh2+ {[%clk 0:00:10]} 55. Kd3 {[%clk 0:00:08]}  Ke5 {[%clk 0:00:10]} 56. Re3+ {[%clk 0:00:07]}  Kf4 {[%clk 0:00:11]} 57. Re7 {[%clk 0:00:08]}  Rh3+ {[%clk 0:00:11]} 58. Kd4 {[%clk 0:00:08]}  Rhxc3 {[%clk 0:00:09]} 59. Rxa7 {[%clk 0:00:08]}  Rc8 {[%clk 0:00:09]} 60. Kd3 {[%clk 0:00:07]}  Rd1+ {[%clk 0:00:08]} 61. Ke2 {[%clk 0:00:07]}  Rcd8 {[%clk 0:00:09]} 62. Kf2 {[%clk 0:00:04]}  R1d2+ {[%clk 0:00:09]} 63. Be2 {[%clk 0:00:00]}  Re8 {[%clk 0:00:10]} 0-1


[Site "https://www.chess.com"]

[Event "Titled Tuesday Blitz May 30 Early 2023"]
[White "Mahdavi, Reza"]
[Black "Lenderman, Aleksandr"]
[WhiteFideId "12595926"]
[BlackFideId "2021285"]
[WhiteElo "2352"]
[BlackElo "2607"]
[Result "1/2-1/2"]
[Round "09"]
[TimeControl "180+2"]
[Date "2023.05.30"]
[WhiteClock "0:00:16"]
[BlackClock "0:00:24"]

1. e4 {[%clk 0:03:00]}  d5 {[%clk 0:02:51]} 2. exd5 {[%clk 0:02:59]}  Nf6 {[%clk 0:02:51]} 3. Nf3 {[%clk 0:02:47]}  Bg4 {[%clk 0:02:49]} 4. Bb5+ {[%clk 0:02:46]}  Nbd7 {[%clk 0:02:46]} 5. h3 {[%clk 0:02:46]}  Bh5 {[%clk 0:02:42]} 6. Nc3 {[%clk 0:02:47]}  a6 {[%clk 0:02:38]} 7. Be2 {[%clk 0:02:47]}  Nb6 {[%clk 0:02:36]} 8. O-O {[%clk 0:02:47]}  Nbxd5 {[%clk 0:02:35]} 9. Nxd5 {[%clk 0:02:48]}  Nxd5 {[%clk 0:02:35]} 10. d4 {[%clk 0:02:49]}  e6 {[%clk 0:02:35]} 11. c4 {[%clk 0:02:50]}  Nf6 {[%clk 0:02:34]} 12. Bf4 {[%clk 0:02:50]}  Bd6 {[%clk 0:02:34]} 13. Ne5 {[%clk 0:02:50]}  Bxe2 {[%clk 0:02:33]} 14. Qxe2 {[%clk 0:02:51]}  O-O {[%clk 0:02:33]} 15. Rad1 {[%clk 0:02:51]}  Re8 {[%clk 0:02:31]} 16. Rfe1 {[%clk 0:02:39]}  c6 {[%clk 0:02:31]} 17. Bg5 {[%clk 0:02:37]}  Be7 {[%clk 0:02:27]} 18. Qf3 {[%clk 0:02:29]}  Qa5 {[%clk 0:02:23]} 19. a3 {[%clk 0:02:27]}  Rad8 {[%clk 0:02:22]} 20. b4 {[%clk 0:02:27]}  Qc7 {[%clk 0:02:19]} 21. Rd3 {[%clk 0:02:22]}  Qc8 {[%clk 0:02:19]} 22. Red1 {[%clk 0:02:14]}  Rf8 {[%clk 0:02:11]} 23. Bh4 {[%clk 0:02:08]}  Rde8 {[%clk 0:02:05]} 24. Bxf6 {[%clk 0:01:57]}  Bxf6 {[%clk 0:02:04]} 25. Ng4 {[%clk 0:01:58]}  Be7 {[%clk 0:02:04]} 26. d5 {[%clk 0:01:59]}  cxd5 {[%clk 0:02:01]} 27. cxd5 {[%clk 0:02:00]}  exd5 {[%clk 0:02:00]} 28. Rxd5 {[%clk 0:01:57]}  Rd8 {[%clk 0:02:01]} 29. Rxd8 {[%clk 0:01:43]}  Rxd8 {[%clk 0:02:02]} 30. Rxd8+ {[%clk 0:01:43]}  Bxd8 {[%clk 0:02:00]} 31. Qd5 {[%clk 0:01:43]}  Qc1+ {[%clk 0:01:53]} 32. Kh2 {[%clk 0:01:39]}  Qc7+ {[%clk 0:01:53]} 33. g3 {[%clk 0:01:38]}  Be7 {[%clk 0:01:51]} 34. Ne5 {[%clk 0:01:35]}  Bf6 {[%clk 0:01:50]} 35. Nd7 {[%clk 0:01:31]}  Bb2 {[%clk 0:01:48]} 36. a4 {[%clk 0:01:25]}  g6 {[%clk 0:01:47]} 37. Nc5 {[%clk 0:01:22]}  Bc3 {[%clk 0:01:46]} 38. b5 {[%clk 0:01:15]}  axb5 {[%clk 0:01:45]} 39. axb5 {[%clk 0:01:16]}  Qb6 {[%clk 0:01:41]} 40. Ne4 {[%clk 0:00:58]}  Bb4 {[%clk 0:01:33]} 41. Kg2 {[%clk 0:00:59]}  Bf8 {[%clk 0:01:24]} 42. Ng5 {[%clk 0:00:53]}  Qc7 {[%clk 0:01:20]} 43. Ne4 {[%clk 0:00:49]}  Qe7 {[%clk 0:01:17]} 44. g4 {[%clk 0:00:42]}  h6 {[%clk 0:01:12]} 45. Qd4 {[%clk 0:00:35]}  Bg7 {[%clk 0:01:11]} 46. Qd5 {[%clk 0:00:36]}  b6 {[%clk 0:01:02]} 47. Qc6 {[%clk 0:00:32]}  Bd4 {[%clk 0:00:59]} 48. Qd5 {[%clk 0:00:32]}  Be5 {[%clk 0:00:56]} 49. h4 {[%clk 0:00:31]}  Kg7 {[%clk 0:00:54]} 50. g5 {[%clk 0:00:31]}  hxg5 {[%clk 0:00:54]} 51. hxg5 {[%clk 0:00:32]}  Qc7 {[%clk 0:00:54]} 52. Nd2 {[%clk 0:00:29]}  Qd6 {[%clk 0:00:46]} 53. Qxd6 {[%clk 0:00:27]}  Bxd6 {[%clk 0:00:47]} 54. Nc4 {[%clk 0:00:28]}  Bc5 {[%clk 0:00:47]} 55. f4 {[%clk 0:00:28]}  Kf8 {[%clk 0:00:33]} 56. Kf3 {[%clk 0:00:28]}  Ke7 {[%clk 0:00:34]} 57. Ke4 {[%clk 0:00:28]}  Ke6 {[%clk 0:00:34]} 58. Ne5 {[%clk 0:00:28]}  Bd6 {[%clk 0:00:34]} 59. Nc6 {[%clk 0:00:27]}  Bc7 {[%clk 0:00:33]} 60. Nd4+ {[%clk 0:00:26]}  Kd6 {[%clk 0:00:34]} 61. f5 {[%clk 0:00:24]}  Bd8 {[%clk 0:00:29]} 62. Nf3 {[%clk 0:00:13]}  gxf5+ {[%clk 0:00:21]} 63. Kxf5 {[%clk 0:00:14]}  Kc5 {[%clk 0:00:22]} 64. Ne5 {[%clk 0:00:14]}  Kxb5 {[%clk 0:00:22]} 65. Nxf7 {[%clk 0:00:15]}  Bxg5 {[%clk 0:00:23]} 66. Kxg5 {[%clk 0:00:15]}  Kc5 {[%clk 0:00:23]} 67. Kf4 {[%clk 0:00:16]}  Kd4 {[%clk 0:00:23]} 68. Nd6 {[%clk 0:00:15]}  b5 {[%clk 0:00:24]} 69. Nxb5+ {[%clk 0:00:16]} 1/2-1/2


[Site "https://www.chess.com"]

[Event "Titled Tuesday Blitz May 30 Early 2023"]
[White "Svane, Rasmus"]
[Black "Bryakin, Mikhail"]
[WhiteFideId "4657101"]
[BlackFideId "4165314"]
[WhiteElo "2601"]
[BlackElo "2467"]
[Result "1/2-1/2"]
[Round "09"]
[TimeControl "180+2"]
[Date "2023.05.30"]
[WhiteClock "0:00:11"]
[BlackClock "0:00:04"]

1. Nf3 {[%clk 0:03:00]}  c5 {[%clk 0:02:58]} 2. c4 {[%clk 0:03:00]}  Nf6 {[%clk 0:02:57]} 3. Nc3 {[%clk 0:02:59]}  Nc6 {[%clk 0:02:58]} 4. e3 {[%clk 0:02:56]}  d5 {[%clk 0:02:56]} 5. cxd5 {[%clk 0:02:57]}  Nxd5 {[%clk 0:02:57]} 6. Bb5 {[%clk 0:02:57]}  Nxc3 {[%clk 0:02:51]} 7. bxc3 {[%clk 0:02:58]}  Bd7 {[%clk 0:02:50]} 8. O-O {[%clk 0:02:58]}  e6 {[%clk 0:02:43]} 9. d4 {[%clk 0:02:58]}  Be7 {[%clk 0:02:42]} 10. e4 {[%clk 0:02:54]}  O-O {[%clk 0:02:38]} 11. Rb1 {[%clk 0:02:43]}  Na5 {[%clk 0:02:25]} 12. Bd3 {[%clk 0:02:42]}  cxd4 {[%clk 0:02:20]} 13. cxd4 {[%clk 0:02:43]}  b6 {[%clk 0:02:19]} 14. Ne5 {[%clk 0:02:39]}  Rc8 {[%clk 0:02:12]} 15. Be3 {[%clk 0:02:33]}  Be8 {[%clk 0:02:03]} 16. Qe2 {[%clk 0:02:27]}  f6 {[%clk 0:02:03]} 17. Nf3 {[%clk 0:02:25]}  Bh5 {[%clk 0:01:56]} 18. h3 {[%clk 0:02:25]}  Qc7 {[%clk 0:01:47]} 19. Rfc1 {[%clk 0:02:22]}  Qb8 {[%clk 0:01:44]} 20. d5 {[%clk 0:02:15]}  e5 {[%clk 0:01:30]} 21. g4 {[%clk 0:02:11]}  Bf7 {[%clk 0:01:26]} 22. Ba6 {[%clk 0:02:09]}  Rxc1+ {[%clk 0:01:26]} 23. Rxc1 {[%clk 0:02:10]}  Nb7 {[%clk 0:01:24]} 24. Nh4 {[%clk 0:02:00]}  g6 {[%clk 0:01:22]} 25. Bxb7 {[%clk 0:01:34]}  Qxb7 {[%clk 0:01:20]} 26. Nf3 {[%clk 0:01:26]}  Rc8 {[%clk 0:01:09]} 27. Rxc8+ {[%clk 0:01:16]}  Qxc8 {[%clk 0:01:10]} 28. Kg2 {[%clk 0:01:17]}  g5 {[%clk 0:00:56]} 29. Nd2 {[%clk 0:01:12]}  Qc2 {[%clk 0:00:45]} 30. Qb5 {[%clk 0:00:29]}  Qxa2 {[%clk 0:00:33]} 31. Qd7 {[%clk 0:00:27]}  Bf8 {[%clk 0:00:31]} 32. Nf1 {[%clk 0:00:23]}  Qa3 {[%clk 0:00:20]} 33. Ng3 {[%clk 0:00:20]}  Qe7 {[%clk 0:00:21]} 34. Qb5 {[%clk 0:00:20]}  Bg6 {[%clk 0:00:21]} 35. Nf5 {[%clk 0:00:19]}  Bxf5 {[%clk 0:00:21]} 36. gxf5 {[%clk 0:00:20]}  h5 {[%clk 0:00:21]} 37. Kf3 {[%clk 0:00:20]}  Kg7 {[%clk 0:00:17]} 38. Qc6 {[%clk 0:00:20]}  Kf7 {[%clk 0:00:16]} 39. Qc8 {[%clk 0:00:19]}  Kg7 {[%clk 0:00:11]} 40. Qc6 {[%clk 0:00:18]}  Kf7 {[%clk 0:00:12]} 41. Ke2 {[%clk 0:00:19]}  Kg7 {[%clk 0:00:11]} 42. Kd1 {[%clk 0:00:18]}  Kf7 {[%clk 0:00:11]} 43. Kc2 {[%clk 0:00:18]}  Qa3 {[%clk 0:00:11]} 44. Qd7+ {[%clk 0:00:16]}  Be7 {[%clk 0:00:11]} 45. Qe6+ {[%clk 0:00:15]}  Kf8 {[%clk 0:00:11]} 46. Qc8+ {[%clk 0:00:13]}  Kf7 {[%clk 0:00:12]} 47. Qe6+ {[%clk 0:00:13]}  Kf8 {[%clk 0:00:12]} 48. h4 {[%clk 0:00:11]}  Qa2+ {[%clk 0:00:07]} 49. Kd3 {[%clk 0:00:11]}  Qb1+ {[%clk 0:00:07]} 50. Ke2 {[%clk 0:00:10]}  Qc2+ {[%clk 0:00:07]} 51. Kf1 {[%clk 0:00:08]}  Qd1+ {[%clk 0:00:07]} 52. Kg2 {[%clk 0:00:09]}  Qg4+ {[%clk 0:00:07]} 53. Kf1 {[%clk 0:00:10]}  Qd1+ {[%clk 0:00:07]} 54. Kg2 {[%clk 0:00:10]}  Qg4+ {[%clk 0:00:08]} 55. Kf1 {[%clk 0:00:11]}  Qd1+ {[%clk 0:00:04]} 1/2-1/2


[Site "https://www.chess.com"]

[Event "Titled Tuesday Blitz May 30 Early 2023"]
[White "Baskakov, Egor"]
[Black "Pranesh M"]
[WhiteFideId "24197866"]
[BlackFideId "35028600"]
[WhiteElo "2225"]
[BlackElo "2437"]
[Result "1-0"]
[Round "09"]
[TimeControl "180+2"]
[Date "2023.05.30"]
[WhiteClock "0:00:14"]
[BlackClock "0:00:03"]

1. e4 {[%clk 0:03:00]}  c5 {[%clk 0:02:59]} 2. Nf3 {[%clk 0:03:00]}  d6 {[%clk 0:02:59]} 3. d4 {[%clk 0:03:00]}  cxd4 {[%clk 0:03:00]} 4. Nxd4 {[%clk 0:03:01]}  Nf6 {[%clk 0:03:00]} 5. Nc3 {[%clk 0:03:01]}  a6 {[%clk 0:03:01]} 6. a4 {[%clk 0:03:00]}  g6 {[%clk 0:03:01]} 7. g3 {[%clk 0:03:00]}  Bg7 {[%clk 0:03:01]} 8. Bg2 {[%clk 0:03:00]}  O-O {[%clk 0:03:01]} 9. h3 {[%clk 0:03:00]}  Nc6 {[%clk 0:02:59]} 10. Nde2 {[%clk 0:03:01]}  Nd7 {[%clk 0:02:44]} 11. O-O {[%clk 0:03:00]}  Nb6 {[%clk 0:02:44]} 12. Nd5 {[%clk 0:02:58]}  Nxd5 {[%clk 0:02:41]} 13. exd5 {[%clk 0:02:59]}  Ne5 {[%clk 0:02:42]} 14. Ra2 {[%clk 0:02:58]}  Bd7 {[%clk 0:02:36]} 15. b3 {[%clk 0:02:56]}  Be8 {[%clk 0:02:17]} 16. a5 {[%clk 0:02:55]}  Rb8 {[%clk 0:02:12]} 17. Be3 {[%clk 0:02:53]}  Nd7 {[%clk 0:02:07]} 18. c4 {[%clk 0:02:50]}  Kh8 {[%clk 0:02:02]} 19. Re1 {[%clk 0:02:36]}  Nc5 {[%clk 0:01:58]} 20. Nd4 {[%clk 0:02:33]}  Rc8 {[%clk 0:01:54]} 21. Bg5 {[%clk 0:02:30]}  Rc7 {[%clk 0:01:38]} 22. Rae2 {[%clk 0:02:27]}  Bf6 {[%clk 0:01:30]} 23. Bh6 {[%clk 0:02:24]}  Rg8 {[%clk 0:01:27]} 24. h4 {[%clk 0:02:12]}  Bd7 {[%clk 0:01:24]} 25. Bf3 {[%clk 0:02:09]}  Bf5 {[%clk 0:01:20]} 26. Re3 {[%clk 0:02:01]}  Rc8 {[%clk 0:01:10]} 27. Bf4 {[%clk 0:01:39]}  Qxa5 {[%clk 0:01:01]} 28. Rxe7 {[%clk 0:01:34]}  Nd3 {[%clk 0:00:42]} 29. Nxf5 {[%clk 0:01:28]}  Nxe1 {[%clk 0:00:42]} 30. Nxd6 {[%clk 0:01:07]}  Bxe7 {[%clk 0:00:40]} 31. Nxf7+ {[%clk 0:01:04]}  Kg7 {[%clk 0:00:40]} 32. Bg4 {[%clk 0:00:32]}  Kxf7 {[%clk 0:00:26]} 33. Qe2 {[%clk 0:00:32]}  Bf6 {[%clk 0:00:22]} 34. Bxc8 {[%clk 0:00:29]}  Nf3+ {[%clk 0:00:17]} 35. Kg2 {[%clk 0:00:25]}  Nd4 {[%clk 0:00:15]} 36. Be6+ {[%clk 0:00:24]}  Kg7 {[%clk 0:00:09]} 37. Qe3 {[%clk 0:00:22]}  Nxe6 {[%clk 0:00:09]} 38. Bh6+ {[%clk 0:00:22]}  Kh8 {[%clk 0:00:08]} 39. Qxe6 {[%clk 0:00:23]}  Qd8 {[%clk 0:00:08]} 40. d6 {[%clk 0:00:20]}  Bg7 {[%clk 0:00:05]} 41. Bg5 {[%clk 0:00:18]}  Qb8 {[%clk 0:00:02]} 42. d7 {[%clk 0:00:17]}  b5 {[%clk 0:00:02]} 43. c5 {[%clk 0:00:17]}  a5 {[%clk 0:00:02]} 44. c6 {[%clk 0:00:15]}  a4 {[%clk 0:00:02]} 45. bxa4 {[%clk 0:00:15]}  bxa4 {[%clk 0:00:03]} 46. Bf4 {[%clk 0:00:15]}  Qf8 {[%clk 0:00:02]} 47. c7 {[%clk 0:00:14]}  Qa8+ {[%clk 0:00:03]} 48. Kh2 {[%clk 0:00:12]}  Qf3 {[%clk 0:00:03]} 49. Be3 {[%clk 0:00:12]}  Qb7 {[%clk 0:00:01]} 50. c8=Q {[%clk 0:00:12]}  Rxc8 {[%clk 0:00:01]} 51. dxc8=Q+ {[%clk 0:00:13]}  Qxc8 {[%clk 0:00:02]} 52. Qxc8+ {[%clk 0:00:13]}  Bf8 {[%clk 0:00:03]} 53. Qxf8# {[%clk 0:00:14]} 1-0


[Site "https://www.chess.com"]